bitfinex-derivatives/quotes_BNBF0:USTF0_20251010
["timestamp","ask_amount","ask_price","bid_price","bid_amount"]
[1760082890516,0.13734881,1267.1,1265.8,0.19527727]
[1760082890517,0.19354089,1266.2,1266.0,0.19527727]
[1760082894815,0.13734881,1267.1,1266.0,0.19527727]
[1760082894816,0.19354089,1266.3,1266.0,0.19527727]
[1760082895218,0.19354089,1266.3,1266.1,0.19527727]
[1760082896220,0.19354089,1266.3,1266.0,0.19527727]
[1760082897821,0.19354089,1266.2,1266.0,0.19527727]
[1760082898121,0.19354089,1266.3,1266.0,0.19527727]
[1760082902125,0.19354089,1266.3,1266.1,0.19527727]
[1760082902325,0.13734881,1267.1,1266.2,0.58686457]
[1760082902326,0.19354089,1266.5,1266.2,0.58686457]
[1760082902622,0.19354089,1266.5,1266.3,0.19527727]
[1760082903224,0.19354089,1266.7,1266.3,0.78798286]
[1760082903425,0.19354089,1266.8,1266.5,0.78408161]
[1760082904322,0.19354089,1266.9,1266.7,0.1960204]
[1760082907729,0.19354089,1267.0,1266.7,0.1960204]
[1760082908130,0.19354089,1267.0,1266.6,0.58806121]
[1760082908131,0.19354089,1267.0,1266.8,0.1960204]
[1760082908527,0.19354089,1267.1,1266.8,0.1960204]
[1760082909133,0.19354089,1267.1,1266.9,0.1960204]
[1760082914634,0.19354089,1267.1,1266.7,0.1960204]
[1760082914929,0.19354089,1267.0,1266.7,0.1960204]
[1760082915932,0.19354089,1267.0,1266.6,0.1960204]
[1760082916435,0.19354089,1266.9,1266.7,0.1960204]
[1760082916731,0.19354089,1267.0,1266.7,0.1960204]
[1760082916933,0.19354089,1267.1,1266.9,0.1960204]
[1760082917931,0.19354089,1267.1,1266.8,0.1960204]
[1760082918135,0.19354089,1267.1,1266.7,0.1960204]
[1760082918335,0.19354089,1267.0,1266.7,0.1960204]
[1760082919935,0.19354089,1266.9,1266.7,0.1960204]
[1760082921039,0.13732226,1267.3,1266.5,0.1960204]
[1760082921240,0.1954185,1266.7,1266.5,0.1960204]
[1760082921436,0.1954185,1266.8,1266.6,0.1960204]
[1760082922442,0.13732226,1267.3,1266.6,0.1960204]
[1760082922443,0.1954185,1266.9,1266.6,0.1960204]
[1760082922744,0.1954185,1266.9,1266.6,0.78408161]
[1760082923039,0.1954185,1266.9,1266.7,0.1960204]
[1760082925743,0.1954185,1267.0,1266.7,0.1960204]
[1760082926145,0.1954185,1266.9,1266.7,0.1960204]
[1760082927543,0.1954185,1266.9,1266.6,0.1960204]
[1760082927745,0.1954185,1266.8,1266.6,0.1960204]
[1760082928042,0.1954185,1266.8,1266.5,0.1960204]
[1760082928344,0.1954185,1266.7,1266.4,0.1960204]
[1760082928945,0.1954185,1266.6,1266.4,0.1960204]
[1760082929443,0.1954185,1266.5,1266.2,0.1960204]
[1760082930646,0.1954185,1266.6,1266.2,0.1960204]
[1760082930946,0.1954185,1266.6,1266.4,0.1960204]
[1760082931845,0.1954185,1266.8,1266.4,0.78408161]
[1760082932346,0.1954185,1266.8,1266.6,0.1960204]
[1760082936153,0.1954185,1266.8,1266.3,0.58806121]
[1760082936154,0.1954185,1266.8,1266.5,0.1960204]
[1760082936352,0.13732226,1267.3,1266.4,0.1960204]
[1760082936353,0.1954185,1266.6,1266.4,0.1960204]
[1760082940959,0.1954185,1266.6,1266.0,1.37604407]
[1760082940960,0.1954185,1266.6,1266.2,0.1960204]
[1760082941163,0.1954185,1266.5,1266.2,0.1960204]
[1760082944566,0.1954185,1266.4,1266.2,0.1960204]
[1760082945168,0.1954185,1266.4,1266.1,0.1960204]
[1760082945872,0.1954185,1266.4,1266.0,0.1960204]
[1760082946172,0.1954185,1266.2,1266.0,0.1960204]
[1760082949275,0.1954185,1266.3,1266.0,0.1960204]
[1760082949478,0.1954185,1266.4,1266.2,0.1960204]
[1760082952978,0.1954185,1266.6,1266.2,0.78408161]
[1760082953173,0.1954185,1266.6,1266.4,0.1960204]
[1760082954480,0.1954185,1266.6,1266.3,0.1960204]
[1760082954874,0.1954185,1266.5,1266.3,0.1960204]
[1760082960581,0.1954185,1266.5,1266.1,0.1960204]
[1760082960984,0.1954185,1266.5,1266.0,0.58806121]
[1760082960985,0.1954185,1266.3,1266.0,0.1960204]
[1760082961585,0.1954185,1266.3,1266.1,0.1960204]
[1760082963288,0.1954185,1266.4,1266.1,0.1960204]
[1760082963482,0.1954185,1266.4,1266.2,0.1960204]
[1760082963881,0.1954185,1266.5,1266.2,0.78408161]
[1760082964185,0.1954185,1266.5,1266.3,0.1960204]
[1760082966787,0.1954185,1266.6,1266.3,0.1960204]
[1760082967082,0.1954185,1266.6,1266.4,0.1960204]
[1760082967483,0.1954185,1266.7,1266.4,0.1960204]
[1760082968587,0.1954185,1266.7,1266.5,0.1960204]
[1760082971386,0.1954185,1266.8,1266.6,0.1960204]
[1760082971590,0.1954185,1266.9,1266.6,0.1960204]
[1760082971988,0.1954185,1266.9,1266.6,0.78449917]
[1760082972391,0.1954185,1266.9,1266.7,0.1960204]
[1760082973489,0.1954185,1266.9,1266.5,0.1960204]
[1760082973788,0.1954185,1266.7,1266.5,0.1960204]
[1760082975293,0.1954185,1266.8,1266.6,0.58847877]
[1760082975491,0.1954185,1266.9,1266.7,0.58869403]
[1760082975794,0.1954185,1266.9,1266.6,0.78471443]
[1760082975990,0.1954185,1266.8,1266.5,0.78471443]
[1760082977594,0.1954185,1266.7,1266.5,0.78471443]
[1760082979200,0.1954185,1266.7,1266.5,0.1960204]
[1760082979399,0.1954185,1266.7,1266.5,0.78501154]
[1760082980199,0.1954185,1266.8,1266.5,0.78501154]
[1760082980597,0.1954185,1266.8,1266.4,0.78501154]
[1760082980899,0.1954185,1266.7,1266.4,0.78501154]
[1760082982395,0.1954185,1266.6,1266.4,0.78501154]
[1760082982597,0.1954185,1266.6,1266.3,0.78501154]
[1760082982801,0.1954185,1266.5,1266.3,0.78501154]
[1760082983801,0.1954185,1266.6,1266.3,0.78501154]
[1760082984699,0.1954185,1266.5,1266.3,0.78501154]
[1760082986007,0.1954185,1266.5,1266.2,0.1960204]
[1760082986405,0.1954185,1266.4,1266.2,0.1960204]
[1760082987408,0.1954185,1266.4,1266.2,0.78501154]
[1760082988410,0.1954185,1266.5,1266.3,0.58899114]
[1760082988606,0.1954185,1266.5,1266.4,0.58899114]
[1760082989109,0.1954185,1266.5,1266.3,0.78501154]
[1760082989309,0.1954185,1266.5,1266.4,0.58899114]
[1760082989508,0.1954185,1266.6,1266.4,0.58899114]
[1760082990807,0.1954185,1266.6,1266.3,0.78501154]
[1760082992108,0.1954185,1266.5,1266.2,0.78501154]
[1760082993212,0.1954185,1266.5,1266.3,0.1960204]
[1760082994007,0.1954185,1266.5,1266.3,0.78501154]
[1760082994407,0.1954185,1266.5,1266.4,0.58899114]
[1760082994611,0.13732226,1267.3,1266.3,0.1960204]
[1760082994612,0.1954185,1266.6,1266.3,0.78501154]
[1760082995507,0.1954185,1266.5,1266.3,0.78501154]
[1760082995813,0.1954185,1266.5,1266.3,0.1960204]
[1760082999519,0.1954185,1266.5,1266.2,0.78501154]
[1760083000215,0.1954185,1266.4,1266.2,0.78501154]
[1760083000418,0.1954185,1266.4,1266.1,0.78501154]
[1760083000913,0.1954185,1266.3,1266.1,0.1960204]
[1760083001319,0.13732226,1267.3,1265.9,0.78501154]
[1760083001518,0.19566402,1266.1,1265.9,0.78501154]
[1760083004219,0.19566402,1266.3,1266.0,0.58947736]
[1760083004419,0.19566402,1266.3,1266.1,0.1960204]
[1760083005918,0.19566402,1266.3,1265.9,0.78549776]
[1760083006117,0.19566402,1266.2,1265.9,0.78549776]
[1760083006318,0.19566402,1266.2,1265.9,0.1960204]
[1760083006716,0.19566402,1266.2,1265.9,0.78549776]
[1760083007121,0.19566402,1266.4,1265.9,0.78549776]
[1760083007320,0.19566402,1266.4,1265.9,0.1960204]
[1760083007619,0.19566402,1266.3,1266.1,0.1960204]
[1760083009520,0.19566402,1266.3,1266.0,0.1960204]
[1760083009819,0.19566402,1266.3,1266.0,0.78549776]
[1760083010321,0.19566402,1266.2,1266.0,0.78549776]
[1760083013223,0.19566402,1266.2,1266.0,0.58947736]
[1760083013423,0.19566402,1266.2,1265.8,0.78549776]
[1760083013718,0.19566402,1266.1,1265.8,0.78549776]
[1760083015422,0.19566402,1266.1,1265.8,0.1960204]
[1760083018326,0.19566402,1266.2,1265.9,0.1960204]
[1760083019928,0.19566402,1266.1,1265.9,0.1960204]
[1760083020229,0.19566402,1266.2,1265.9,0.1960204]
[1760083020728,0.19566402,1266.1,1265.9,0.1960204]
[1760083020927,0.19566402,1266.1,1265.7,0.1960204]
[1760083021123,0.13732226,1267.3,1265.7,0.1960204]
[1760083021325,0.19537764,1265.9,1265.7,0.1960204]
[1760083023327,0.19537764,1265.9,1265.6,0.58947736]
[1760083023328,0.19537764,1265.9,1265.6,0.1960204]
[1760083023731,0.19537764,1265.9,1265.7,0.1960204]
[1760083024727,0.19537764,1265.9,1265.6,0.78549776]
[1760083025129,0.19537764,1265.9,1265.7,0.1960204]
[1760083025828,0.19537764,1265.9,1265.6,0.1960204]
[1760083026633,0.19537764,1265.9,1263.7,1.9494655]
[1760083026634,0.19537764,1265.7,1265.5,0.1960204]
[1760083029240,0.19537764,1265.6,1265.4,0.1960204]
[1760083029539,0.19537764,1265.6,1265.3,0.1960204]
[1760083029736,0.19537764,1265.5,1265.3,0.1960204]
[1760083030054,0.19537764,1265.5,1265.1,0.1960204]
[1760083030234,0.19537764,1265.4,1265.1,0.1960204]
[1760083030735,0.19537764,1265.3,1265.1,0.1960204]
[1760083030937,0.19537764,1265.3,1265.0,0.1960204]
[1760083031135,0.19537764,1265.3,1264.9,0.1960204]
[1760083031339,0.19537764,1265.1,1264.9,0.1960204]
[1760083032339,0.19537764,1265.3,1264.9,0.1960204]
[1760083032635,0.19537764,1265.3,1265.0,0.1960204]
[1760083033340,0.19537764,1265.4,1265.0,0.1960204]
[1760083033540,0.19537764,1265.4,1265.2,0.1960204]
[1760083037438,0.19537764,1265.5,1265.2,0.1960204]
[1760083037743,0.19537764,1265.5,1265.3,0.1960204]
[1760083040242,0.19537764,1265.4,1265.2,0.1960204]
[1760083040847,0.19537764,1265.4,1265.1,0.1960204]
[1760083041248,0.19537764,1265.3,1265.1,0.1960204]
[1760083041750,0.19537764,1265.2,1265.0,0.1960204]
[1760083045852,0.19537764,1265.2,1264.9,0.1960204]
[1760083046048,0.19537764,1265.1,1264.9,0.1960204]
[1760083047153,0.19537764,1265.3,1264.9,0.1960204]
[1760083047554,0.19537764,1265.3,1265.0,0.1960204]
[1760083049655,0.19537764,1265.2,1265.0,0.1960204]
[1760083050758,0.19537764,1265.2,1264.8,0.1960204]
[1760083051161,0.19537764,1265.0,1264.8,0.1960204]
[1760083062059,0.19537764,1265.0,1264.7,0.1960204]
[1760083062359,0.19537764,1264.9,1264.6,0.1960204]
[1760083062859,0.19537764,1264.8,1264.6,0.1960204]
[1760083065866,0.19537764,1264.9,1264.6,0.1960204]
[1760083066261,0.19537764,1264.9,1264.7,0.1960204]
[1760083066462,0.19537764,1265.0,1264.7,0.1960204]
[1760083066666,0.19537764,1265.0,1264.8,0.1960204]
[1760083070074,0.19537764,1265.0,1264.5,0.1960204]
[1760083070474,0.19537764,1265.0,1264.8,0.1960204]
[1760083072479,0.19537764,1265.0,1264.7,0.1960204]
[1760083073076,0.19537764,1264.9,1264.7,0.1960204]
[1760083074082,0.19537764,1264.8,1264.6,0.1960204]
[1760083076078,0.19537764,1264.9,1264.7,0.1960204]
[1760083079378,0.19537764,1264.8,1264.6,0.1960204]
[1760083080681,0.19537764,1264.8,1264.4,0.1960204]
[1760083080878,0.19537764,1264.5,1264.3,0.1960204]
[1760083081584,0.19537764,1264.5,1264.1,0.58802395]
[1760083081585,0.19537764,1264.5,1264.2,0.1960204]
[1760083082484,0.19537764,1264.4,1264.2,0.1960204]
[1760083083480,0.19537764,1264.5,1264.2,0.1960204]
[1760083083785,0.19537764,1264.7,1264.4,0.1960204]
[1760083085781,0.19537764,1264.6,1264.4,0.1960204]
[1760083085980,0.19537764,1264.6,1264.2,0.1960204]
[1760083086185,0.19537764,1264.5,1264.2,0.1960204]
[1760083086982,0.19537764,1264.5,1264.3,0.1960204]
[1760083087382,0.19537764,1264.6,1264.3,0.78404435]
[1760083089087,0.19537764,1264.7,1264.4,0.1960204]
[1760083089284,0.19537764,1264.7,1264.4,0.78404435]
[1760083090086,0.19537764,1264.7,1264.5,0.1960204]
[1760083092486,0.19537764,1264.7,1264.3,0.1960204]
[1760083092886,0.19537764,1264.6,1264.3,0.1960204]
[1760083093794,0.19537764,1264.5,1264.3,0.1960204]
[1760083094795,0.92807274,1266.0,1264.0,0.1960204]
[1760083095095,0.19452076,1264.2,1264.0,0.1960204]
[1760083096998,0.19452076,1264.2,1263.9,0.1960204]
[1760083102996,0.19452076,1264.2,1264.0,0.1960204]
[1760083107700,0.19452076,1264.3,1264.0,0.1960204]
[1760083109600,0.19452076,1264.3,1264.1,0.1960204]
[1760083110204,0.19452076,1264.5,1264.1,0.1960204]
[1760083110504,0.19452076,1264.5,1264.1,0.78404435]
[1760083110705,0.19452076,1264.5,1264.3,0.1960204]
[1760083112303,0.19452076,1264.5,1264.2,0.1960204]
[1760083112703,0.19452076,1264.5,1264.3,0.1960204]
[1760083113604,0.19452076,1264.5,1264.2,0.1960204]
[1760083114804,0.19452076,1264.5,1264.2,0.78404435]
[1760083115804,0.19452076,1264.5,1264.2,0.1960204]
[1760083116408,0.19452076,1264.5,1264.3,0.1960204]
[1760083120311,0.19452076,1264.5,1264.2,0.1960204]
[1760083121218,0.19452076,1264.4,1264.2,0.1960204]
[1760083124519,0.19452076,1264.4,1264.1,0.1960204]
[1760083124817,0.19452076,1264.3,1264.1,0.1960204]
[1760083129524,0.19452076,1264.3,1263.9,0.58917622]
[1760083129525,0.19452076,1264.3,1263.9,0.1960204]
[1760083129925,0.19452076,1264.1,1263.9,0.1960204]
[1760083133428,0.19452076,1264.1,1263.9,0.78519662]
[1760083134127,0.19452076,1264.1,1263.9,0.1960204]
[1760083134330,0.19452076,1264.1,1263.9,0.78519662]
[1760083135923,0.19452076,1264.2,1263.9,0.1960204]
[1760083136325,0.19452076,1264.1,1263.9,0.1960204]
[1760083136523,0.19452076,1264.2,1263.9,0.1960204]
[1760083136929,0.19452076,1264.2,1263.9,0.78519662]
[1760083137224,0.19452076,1264.2,1264.0,0.78519662]
[1760083137429,0.13742203,1266.0,1264.1,0.58917622]
[1760083137430,0.19452076,1264.3,1264.1,0.58917622]
[1760083139327,0.19452076,1264.3,1264.0,0.78519662]
[1760083140633,0.19452076,1264.2,1264.1,0.58917622]
[1760083141328,0.19452076,1264.2,1264.0,0.78519662]
[1760083141530,0.19452076,1264.2,1264.1,0.58917622]
[1760083141832,0.19452076,1264.2,1264.0,0.78519662]
[1760083142036,0.19452076,1264.2,1264.0,0.1960204]
[1760083146639,0.19452076,1264.2,1264.1,0.59065123]
[1760083148139,0.19452076,1264.4,1264.0,0.1960204]
[1760083148335,0.19452076,1264.4,1264.2,0.78675237]
[1760083148842,0.19452076,1264.5,1264.3,0.59073197]
[1760083150335,0.19452076,1264.5,1264.2,0.1960204]
[1760083150540,0.19452076,1264.4,1264.2,0.1960204]
[1760083152741,0.19452076,1264.4,1264.2,0.78675237]
[1760083153137,0.19452076,1264.4,1264.3,0.59073197]
[1760083154441,0.19452076,1264.4,1264.2,0.78675237]
[1760083158137,0.19452076,1264.4,1264.3,0.59073197]
[1760083158342,0.19452076,1264.5,1264.3,0.59073197]
[1760083159542,0.19452076,1264.5,1264.4,0.59073197]
[1760083160639,0.19452076,1264.5,1264.3,0.59073197]
[1760083160837,0.19452076,1264.4,1264.3,0.59073197]
[1760083161040,0.19452076,1264.4,1264.2,0.59073197]
[1760083161342,0.19452076,1264.3,1264.2,0.59073197]
[1760083161943,0.19452076,1264.3,1264.1,0.78675237]
[1760083162545,0.19452076,1264.3,1264.2,0.59073197]
[1760083162743,0.19452076,1264.5,1264.1,0.1960204]
[1760083162940,0.19452076,1264.5,1264.3,0.59124127]
[1760083163342,0.19452076,1264.5,1264.4,0.59124127]
[1760083165345,0.19452076,1264.5,1263.7,0.78726167]
[1760083165545,0.19452076,1264.5,1263.5,0.78726167]
[1760083165841,0.19452076,1263.7,1263.5,0.78726167]
[1760083167446,0.19452076,1263.7,1263.5,0.1960204]
[1760083167945,0.19452076,1263.7,1263.5,0.78726167]
[1760083168245,0.19452076,1263.7,1263.5,0.1960204]
[1760083171047,0.19452076,1263.6,1263.4,0.1960204]
[1760083171947,0.19452076,1263.7,1263.5,0.59124127]
[1760083172145,0.19452076,1263.8,1263.5,0.59124127]
[1760083172347,0.19452076,1263.8,1263.6,0.1960204]
[1760083175754,0.19452076,1263.9,1263.6,0.1960204]
[1760083175952,0.19452076,1264.5,1263.7,0.78798286]
[1760083176150,0.19452076,1264.5,1264.3,0.1960204]
[1760083178761,0.19452076,1264.5,1264.3,0.78536644]
[1760083178959,0.19452076,1264.5,1264.3,0.1960204]
[1760083179758,0.19452076,1264.5,1263.3,0.1960204]
[1760083180054,0.19452076,1263.5,1263.3,0.1960204]
[1760083185558,0.19452076,1263.5,1263.2,0.1960204]
[1760083185757,0.19452076,1263.4,1263.2,0.1960204]
[1760083188963,0.19452076,1263.4,1263.1,0.1960204]
[1760083189159,0.19452076,1263.3,1263.1,0.1960204]
[1760083189962,0.19452076,1263.3,1263.0,0.1960204]
[1760083191061,0.19452076,1263.3,1263.1,0.1960204]
[1760083191462,0.19452076,1263.4,1263.1,0.1960204]
[1760083191664,0.19452076,1263.4,1263.2,0.1960204]
[1760083192165,0.19452076,1263.6,1263.2,0.1960204]
[1760083192365,0.19452076,1263.7,1263.4,0.1960204]
[1760083193061,0.19452076,1263.9,1263.4,0.1960204]
[1760083193465,0.19452076,1263.9,1263.7,0.1960204]
[1760083196367,0.19452076,1263.9,1263.4,0.58771378]
[1760083196368,0.19452076,1263.9,1263.6,0.1960204]
[1760083200170,0.19452076,1263.9,1261.4,1.9494655]
[1760083200772,0.19284292,1263.9,1263.7,0.19582466]
[1760083201270,0.19284292,1263.9,1263.6,0.19582466]
[1760083202472,0.19284292,1264.1,1263.6,0.19582466]
[1760083202874,0.19284292,1264.1,1263.9,0.19582466]
[1760083203570,0.19284292,1264.2,1263.9,0.19582466]
[1760083203870,0.19284292,1264.2,1264.0,0.19582466]
[1760083205575,0.19284292,1264.5,1263.9,0.58747399]
[1760083205774,0.19284292,1264.7,1264.2,0.58747399]
[1760083205975,0.19284292,1264.7,1264.5,0.19570388]
[1760083207973,0.19284292,1264.8,1264.5,0.19570388]
[1760083210676,0.19284292,1264.8,1264.6,0.19570388]
[1760083212080,0.19284292,1264.8,1264.5,0.19570388]
[1760083212978,0.19284292,1264.8,1264.6,0.19570388]
[1760083214783,0.19284292,1264.9,1264.6,0.19570388]
[1760083215079,0.19284292,1265.0,1264.7,0.19570388]
[1760083215280,0.19284292,1265.1,1264.7,0.19570388]
[1760083215682,0.19284292,1265.1,1264.9,0.19570388]
[1760083215879,0.19284292,1265.2,1264.9,0.19570388]
[1760083216582,0.19284292,1265.2,1265.0,0.19570388]
[1760083219084,0.19284292,1265.3,1265.0,0.19570388]
[1760083219284,0.19284292,1265.3,1265.1,0.19570388]
[1760083220184,0.19284292,1265.4,1265.1,0.19570388]
[1760083220782,0.19284292,1265.4,1265.2,0.19570388]
[1760083221185,0.19284292,1265.5,1265.2,0.19570388]
[1760083221485,0.19284292,1265.5,1265.3,0.19570388]
[1760083221982,0.19284292,1265.7,1265.1,0.58747399]
[1760083222182,0.19284292,1265.7,1265.5,0.19443214]
[1760083222480,0.19284292,1265.7,1265.4,0.19443214]
[1760083222785,0.19284292,1265.7,1265.3,0.19443214]
[1760083223487,0.19284292,1265.7,1265.4,0.19443214]
[1760083223683,0.78996199,1268.2,1265.4,0.19443214]
[1760083223684,0.19284292,1265.9,1265.4,0.19443214]
[1760083223887,0.19284292,1265.9,1265.6,0.19443214]
[1760083227585,0.19284292,1265.9,1265.5,0.19443214]
[1760083227787,0.19284292,1265.7,1265.5,0.19443214]
[1760083229789,0.19284292,1265.6,1265.4,0.19443214]
[1760083230085,0.19284292,1265.8,1265.4,0.19443214]
[1760083230289,0.19284292,1265.8,1265.6,0.19352485]
[1760083233186,0.19284292,1265.9,1265.6,0.19352485]
[1760083233490,0.19284292,1266.0,1265.8,0.19352485]
[1760083234589,0.19284292,1266.1,1265.8,0.19352485]
[1760083235485,0.19284292,1266.1,1265.6,0.19352485]
[1760083235685,0.19284292,1265.8,1265.5,0.19352485]
[1760083236185,0.19284292,1265.7,1265.5,0.19352485]
[1760083236686,0.78971966,1268.2,1265.3,0.19352485]
[1760083236886,0.19100361,1265.7,1265.3,0.19352485]
[1760083237087,0.19100361,1265.7,1265.5,0.19352485]
[1760083238089,0.19100361,1265.7,1263.6,1.1749479]
[1760083238090,0.19100361,1265.8,1265.6,0.19352485]
[1760083238389,0.19100361,1265.9,1265.6,0.19352485]
[1760083238890,0.19100361,1265.8,1265.6,0.19352485]
[1760083239091,0.19100361,1265.9,1265.6,0.19352485]
[1760083240289,0.19100361,1266.1,1265.0,0.58747399]
[1760083240484,0.19100361,1266.2,1266.0,0.19293886]
[1760083243991,0.19100361,1266.2,1265.9,0.19293886]
[1760083244189,0.19100361,1266.2,1265.8,0.19293886]
[1760083244387,0.19100361,1266.0,1265.8,0.19293886]
[1760083248491,0.19100361,1265.9,1265.7,0.19293886]
[1760083252498,0.19100361,1265.9,1265.6,0.19293886]
[1760083252996,0.19100361,1265.8,1265.6,0.19293886]
[1760083254996,0.19100361,1265.9,1265.6,0.19293886]
[1760083255599,0.19100361,1265.9,1265.7,0.19293886]
[1760083261202,0.19100361,1266.0,1265.7,0.19293886]
[1760083262102,0.19100361,1266.1,1265.8,0.19293886]
[1760083262600,0.19100361,1266.2,1265.8,0.19293886]
[1760083263105,0.19100361,1266.2,1265.9,0.19293886]
[1760083263305,0.7896445,1268.2,1265.9,0.19293886]
[1760083263306,0.19100361,1266.1,1265.9,0.19293886]
[1760083264807,0.19100361,1266.2,1265.9,0.19293886]
[1760083265707,0.19100361,1266.1,1265.9,0.19293886]
[1760083265902,0.19100361,1266.1,1265.7,0.19293886]
[1760083266407,0.19100361,1266.0,1265.8,0.19293886]
[1760083268506,0.32838658,1266.2,1265.6,0.58620625]
[1760083268708,0.32838658,1266.2,1266.0,0.19545004]
[1760083268909,0.32838658,1266.2,1265.9,0.19545004]
[1760083269109,0.19100361,1266.1,1265.9,0.19545004]
[1760083269305,0.19100361,1266.1,1265.7,0.19545004]
[1760083269510,0.19100361,1265.9,1265.7,0.19545004]
[1760083274910,0.19100361,1266.0,1265.7,0.78165629]
[1760083275310,0.19100361,1266.0,1265.8,0.58620625]
[1760083275611,0.19100361,1266.1,1265.8,0.78165629]
[1760083275813,0.32838658,1266.2,1265.9,0.58620625]
[1760083276010,0.32838658,1266.2,1265.9,0.78165629]
[1760083276210,0.13738297,1266.2,1266.1,0.58620625]
[1760083278718,0.19100361,1266.3,1266.1,0.58620625]
[1760083278915,0.19100361,1266.4,1266.2,0.58620625]
[1760083279217,0.19100361,1266.4,1266.0,0.19545004]
[1760083279218,0.19100361,1266.5,1266.3,0.19545004]
[1760083279517,0.19100361,1266.5,1266.4,0.5894131]
[1760083280615,0.19100361,1266.6,1266.4,0.19545004]
[1760083280813,0.19100361,1266.7,1266.4,0.97874869]
[1760083281315,0.19100361,1266.8,1266.6,0.58908008]
[1760083281619,0.19100361,1266.8,1266.5,0.19545004]
[1760083281620,0.32835784,1266.9,1266.5,0.97874869]
[1760083281816,0.13735423,1266.9,1266.8,0.58900721]
[1760083282018,0.19100361,1267.0,1266.7,0.19545004]
[1760083282216,0.19100361,1267.0,1266.8,0.78441356]
[1760083282519,0.19100361,1267.1,1266.8,0.78441356]
[1760083283016,0.19100361,1267.0,1266.8,0.78441356]
[1760083283216,0.19100361,1267.0,1266.8,0.19545004]
[1760083283419,0.19100361,1267.0,1266.7,0.19545004]
[1760083284217,0.19100361,1267.0,1266.7,0.78441356]
[1760083285021,0.19100361,1267.0,1266.8,0.58896352]
[1760083285221,0.19100361,1267.0,1266.7,0.78441356]
[1760083285420,0.19100361,1267.0,1266.8,0.19545004]
[1760083285621,0.19100361,1267.0,1266.8,0.78441356]
[1760083285918,0.19100361,1267.0,1266.8,0.19545004]
[1760083291420,0.19100361,1267.0,1266.7,0.19545004]
[1760083292517,0.19100361,1267.0,1266.6,0.58896352]
[1760083292518,0.19100361,1267.0,1266.6,0.19545004]
[1760083292721,0.19100361,1266.8,1266.5,0.19545004]
[1760083293123,0.19100361,1266.8,1266.6,0.19545004]
[1760083293720,0.19100361,1266.8,1265.8,0.78329865]
[1760083293721,0.19100361,1266.8,1266.5,0.19545004]
[1760083294219,0.19100361,1266.8,1266.6,0.19545004]
[1760083295224,0.19100361,1266.8,1266.5,0.19545004]
[1760083295930,0.19100361,1266.7,1266.5,0.19545004]
[1760083296334,0.19100361,1266.8,1266.5,0.19545004]
[1760083297230,0.19100361,1266.8,1266.6,0.19545004]
[1760083297533,0.19100361,1266.9,1266.6,0.19545004]
[1760083297731,0.19100361,1266.9,1266.7,0.19545004]
[1760083298131,0.19100361,1266.9,1266.5,0.19545004]
[1760083298531,0.19100361,1266.7,1266.5,0.19545004]
[1760083299034,0.19100361,1266.7,1266.3,0.19545004]
[1760083299332,0.19100361,1266.7,1266.2,0.58896352]
[1760083299333,0.19100361,1266.7,1266.2,0.19545004]
[1760083299536,0.19100361,1266.4,1266.2,0.19545004]
[1760083300836,0.19100361,1266.4,1266.1,0.19545004]
[1760083302735,0.19100361,1266.5,1266.1,0.78441356]
[1760083303035,0.19100361,1266.5,1266.2,0.19545004]
[1760083303238,0.19100361,1266.5,1266.2,0.78441356]
[1760083303435,0.19100361,1266.5,1266.3,0.19545004]
[1760083304037,0.13731088,1267.3,1266.3,0.19545004]
[1760083304038,0.19100361,1266.6,1266.3,0.19545004]
[1760083305038,0.19100361,1266.6,1266.4,0.19545004]
[1760083305341,0.19100361,1266.8,1266.4,0.78441356]
[1760083305541,0.19100361,1266.8,1266.5,0.19545004]
[1760083306743,0.19100361,1266.8,1266.5,0.78441356]
[1760083307040,0.19100361,1266.8,1266.6,0.19545004]
[1760083308040,0.19100361,1266.9,1266.6,0.19545004]
[1760083308240,0.19100361,1267.0,1266.7,0.19545004]
[1760083309144,0.19100361,1267.0,1266.6,0.58896352]
[1760083309145,0.19100361,1267.0,1266.8,0.19545004]
[1760083310045,0.19100361,1267.1,1266.8,0.19545004]
[1760083310243,0.19100361,1267.1,1266.2,0.78329865]
[1760083310244,0.19100361,1267.1,1266.9,0.19545004]
[1760083310646,0.19100361,1267.2,1267.0,0.19545004]
[1760083312647,0.19100361,1267.3,1267.0,0.19545004]
[1760083312845,0.19100361,1267.3,1267.1,0.19545004]
[1760083313046,0.32829769,1267.5,1267.1,0.78441356]
[1760083313444,0.32829769,1267.5,1267.3,0.19545004]
[1760083315249,0.32829769,1267.5,1267.2,0.19545004]
[1760083315753,0.19100361,1267.5,1267.3,0.19545004]
[1760083315948,0.19100361,1267.6,1267.3,0.19545004]
[1760083316450,0.19100361,1267.6,1267.4,0.19545004]
[1760083316853,0.19100361,1267.7,1267.4,0.19545004]
[1760083317255,0.19100361,1267.7,1267.5,0.19545004]
[1760083319553,0.19100361,1267.9,1267.4,0.58896352]
[1760083319857,0.19100361,1267.9,1267.7,0.1947044]
[1760083320153,0.19100361,1268.1,1267.8,0.1947044]
[1760083321752,0.19100361,1268.1,1267.9,0.1947044]
[1760083328564,0.19100361,1268.1,1267.8,0.1947044]
[1760083329062,0.19100361,1268.0,1267.8,0.1947044]
[1760083330162,0.19100361,1268.3,1267.8,0.1947044]
[1760083330661,0.19100361,1268.4,1268.1,0.1947044]
[1760083331867,0.19100361,1268.4,1268.2,0.1947044]
[1760083332065,0.19100361,1268.4,1268.1,0.1947044]
[1760083332465,0.19100361,1268.3,1268.1,0.1947044]
[1760083333961,0.19100361,1268.3,1268.0,0.1947044]
[1760083334163,0.19100361,1268.3,1267.8,0.1947044]
[1760083334362,0.19100361,1268.1,1267.8,0.1947044]
[1760083334566,0.19100361,1268.1,1267.9,0.1947044]
[1760083337769,0.19100361,1268.1,1267.7,0.1947044]
[1760083338166,0.19100361,1268.1,1267.9,0.1947044]
[1760083340367,0.19100361,1268.2,1267.9,0.1947044]
[1760083340764,0.19100361,1268.2,1268.0,0.1947044]
[1760083342165,0.19100361,1268.3,1268.0,0.1947044]
[1760083342669,0.19100361,1268.3,1268.1,0.1947044]
[1760083343068,0.19100361,1268.3,1267.9,0.1947044]
[1760083343371,0.19100361,1268.2,1267.9,0.1947044]
[1760083344667,0.19100361,1268.1,1267.9,0.1947044]
[1760083345872,0.19100361,1268.1,1267.8,0.1947044]
[1760083346168,0.19100361,1268.0,1267.8,0.1947044]
[1760083347072,0.19100361,1268.0,1267.7,0.1947044]
[1760083347574,0.19100361,1268.0,1267.8,0.1947044]
[1760083349672,0.19100361,1268.1,1267.8,0.1947044]
[1760083350276,0.19100361,1268.1,1267.9,0.1947044]
[1760083350772,0.19100361,1268.2,1267.9,0.1947044]
[1760083351273,0.19100361,1268.2,1268.0,0.1947044]
[1760083351872,0.19100361,1268.2,1267.9,0.1947044]
[1760083352873,0.19100361,1268.2,1268.0,0.1947044]
[1760083353077,0.19100361,1268.4,1268.0,0.1947044]
[1760083353473,0.19100361,1268.4,1268.1,0.1947044]
[1760083354472,0.19100361,1268.4,1267.2,1.1749479]
[1760083354473,0.19100361,1268.4,1268.2,0.1947044]
[1760083358478,0.19100361,1268.4,1268.0,0.1947044]
[1760083358779,0.19100361,1268.3,1268.0,0.1947044]
[1760083359381,0.19100361,1268.3,1268.1,0.1947044]